[Event "Early-Titled-Tuesday-Blitz-August-29-2023"]
[Site "Chess.com"]
[Date "2023.08.29"]
[Round "4"]
[White "Grossboss19"]
[Black "HackWithBlack"]
[Result "0-1"]
[WhiteElo "2506"]
[BlackElo "2376"]
[TimeControl "180+1"]
[EndTime "8:39:08 PDT"]
[Termination "HackWithBlack won on time"]

1. e4 {[%clk 0:02:53.7]} 1... c6 {[%clk 0:03:00]} 2. e5 {[%clk 0:02:51.4]} 2...
d5 {[%clk 0:02:56.9]} 3. exd6 {[%clk 0:02:51.5]} 3... exd6 {[%clk 0:02:56]} 4.
d4 {[%clk 0:02:51.6]} 4... Nf6 {[%clk 0:02:55.7]} 5. h3 {[%clk 0:02:50.1]} 5...
Bf5 {[%clk 0:02:55.4]} 6. Nc3 {[%clk 0:02:50.2]} 6... d5 {[%clk 0:02:52.2]} 7.
Bg5 {[%clk 0:02:48.6]} 7... Bd6 {[%clk 0:02:50.5]} 8. Qd2 {[%clk 0:02:47.7]}
8... Nbd7 {[%clk 0:02:39.4]} 9. O-O-O {[%clk 0:02:44]} 9... Qa5 {[%clk
0:02:34.4]} 10. Re1+ {[%clk 0:02:42.7]} 10... Kf8 {[%clk 0:02:30]} 11. g4 {[%clk
0:02:38.7]} 11... Bg6 {[%clk 0:02:14.9]} 12. Nf3 {[%clk 0:02:33.4]} 12... Bb4
{[%clk 0:02:10]} 13. Bh4 {[%clk 0:01:52.8]} 13... Ne4 {[%clk 0:02:07.2]} 14. Qf4
{[%clk 0:01:40]} 14... Nxc3 {[%clk 0:01:56.6]} 15. bxc3 {[%clk 0:01:30.6]} 15...
Qa3+ {[%clk 0:01:55.8]} 16. Kb1 {[%clk 0:01:21.8]} 16... Qxc3 {[%clk 0:01:44.1]}
17. Qc1 {[%clk 0:01:02.2]} 17... Qxf3 {[%clk 0:01:35.7]} 18. Be2 {[%clk
0:00:36.6]} 18... Qc3 {[%clk 0:01:31.2]} 19. Bd1 {[%clk 0:00:26.5]} 19... Ba3
{[%clk 0:01:23.5]} 20. Re3 {[%clk 0:00:20.3]} 20... Qb4+ {[%clk 0:01:16.2]} 21.
Rb3 {[%clk 0:00:18.6]} 21... Qxb3+ {[%clk 0:01:15.7]} 22. axb3 {[%clk
0:00:19.2]} 22... Bxc1 {[%clk 0:01:16.6]} 23. Kxc1 {[%clk 0:00:20.1]} 23... f6
{[%clk 0:01:12.2]} 24. f4 {[%clk 0:00:18.5]} 24... Be4 {[%clk 0:01:12.1]} 25.
Rg1 {[%clk 0:00:18.8]} 25... Kf7 {[%clk 0:01:12.5]} 26. Bg3 {[%clk 0:00:18.5]}
26... Rhe8 {[%clk 0:01:12.5]} 27. f5 {[%clk 0:00:18.9]} 27... Rac8 {[%clk
0:01:09.7]} 28. Rf1 {[%clk 0:00:15.6]} 28... c5 {[%clk 0:01:09.3]} 29. dxc5
{[%clk 0:00:15.9]} 29... Nxc5 {[%clk 0:01:08.2]} 30. Kb2 {[%clk 0:00:13.5]}
30... a5 {[%clk 0:01:07.7]} 31. Be2 {[%clk 0:00:12.1]} 31... b6 {[%clk
0:01:07.5]} 32. Bb5 {[%clk 0:00:11.9]} 32... Red8 {[%clk 0:01:04.5]} 33. h4
{[%clk 0:00:11.2]} 33... Bxc2 {[%clk 0:01:01.1]} 34. g5 {[%clk 0:00:07.3]} 34...
Bd3 {[%clk 0:00:57.9]} 35. Bxd3 {[%clk 0:00:03.1]} 35... Nxd3+ {[%clk
0:00:58.8]} 36. Ka3 {[%clk 0:00:03.7]} 36... b5 {[%clk 0:00:56.4]} 37. Rf3
{[%clk 0:00:02.7]} 37... Ne5 {[%clk 0:00:56.3]} 38. Re3 {[%clk 0:00:01.4]} 38...
d4 {[%clk 0:00:55.9]} 39. Re4 {[%clk 0:00:02]} 39... d3 {[%clk 0:00:55.4]} 40.
g6+ {[%clk 0:00:02.2]} 40... hxg6 {[%clk 0:00:55.2]} 41. fxg6+ {[%clk
0:00:03.1]} 41... Kxg6 {[%clk 0:00:56.1]} 42. h5+ {[%clk 0:00:03.2]} 42... Kxh5
{[%clk 0:00:56.3]} 43. Bxe5 {[%clk 0:00:03.5]} 43... fxe5 {[%clk 0:00:56.9]} 44.
b4 {[%clk 0:00:03.6]} 44... axb4+ {[%clk 0:00:56.3]} 45. Kb3 {[%clk 0:00:03]}
45... Rc3+ {[%clk 0:00:55.2]} 46. Kb2 {[%clk 0:00:02.9]} 46... d2 {[%clk
0:00:54.5]} 47. Rxe5+ {[%clk 0:00:03]} 47... Kh6 {[%clk 0:00:54.3]} 48. Re6+
{[%clk 0:00:03.2]} 48... g6 {[%clk 0:00:54.8]} 0-1

[Event "Early-Titled-Tuesday-Blitz-August-29-2023"]
[Site "Chess.com"]
[Date "2023.08.29"]
[Round "4"]
[White "Dmitry_Konenkin"]
[Black "subham777"]
[Result "1-0"]
[WhiteElo "2396"]
[BlackElo "2515"]
[TimeControl "180+1"]
[EndTime "8:39:10 PDT"]
[Termination "Dmitry_Konenkin won on time"]

1. d4 {[%clk 0:03:00.9]} 1... d5 {[%clk 0:02:59.4]} 2. Bg5 {[%clk 0:03:00.5]}
2... Nf6 {[%clk 0:02:59.2]} 3. Nd2 {[%clk 0:02:59.6]} 3... e6 {[%clk 0:02:59.4]}
4. e4 {[%clk 0:02:59.7]} 4... dxe4 {[%clk 0:02:59.4]} 5. Nxe4 {[%clk 0:02:59.8]}
5... Be7 {[%clk 0:02:57.5]} 6. Bxf6 {[%clk 0:03:00.2]} 6... Bxf6 {[%clk
0:02:57.6]} 7. Nf3 {[%clk 0:03:00.9]} 7... O-O {[%clk 0:02:56.4]} 8. Qd3 {[%clk
0:03:00.9]} 8... h6 {[%clk 0:02:51.7]} 9. O-O-O {[%clk 0:03:00.1]} 9... Bd7
{[%clk 0:02:49.5]} 10. h4 {[%clk 0:02:57.9]} 10... Bc6 {[%clk 0:02:46.1]} 11. g4
{[%clk 0:02:56.9]} 11... Qd5 {[%clk 0:02:31.7]} 12. Nxf6+ {[%clk 0:02:28.9]}
12... gxf6 {[%clk 0:02:32.6]} 13. Be2 {[%clk 0:02:16.2]} 13... Qxa2 {[%clk
0:02:30]} 14. g5 {[%clk 0:02:09.7]} 14... Qa1+ {[%clk 0:02:00.2]} 15. Kd2 {[%clk
0:02:09.5]} 15... Qa5+ {[%clk 0:02:00.4]} 16. c3 {[%clk 0:02:05.3]} 16... f5
{[%clk 0:01:41.4]} 17. gxh6 {[%clk 0:01:58.5]} 17... Kh8 {[%clk 0:01:27.8]} 18.
Rhg1 {[%clk 0:01:47]} 18... Nd7 {[%clk 0:01:17.6]} 19. Rg7 {[%clk 0:01:37.9]}
19... Rad8 {[%clk 0:01:08.3]} 20. Ng5 {[%clk 0:00:52.7]} 20... Nf6 {[%clk
0:01:01.3]} 21. f3 {[%clk 0:00:36.1]} 21... Qb6 {[%clk 0:00:56.4]} 22. Kc1
{[%clk 0:00:34.3]} 22... Rd7 {[%clk 0:00:38.8]} 23. Rg1 {[%clk 0:00:31.2]} 23...
Qa5 {[%clk 0:00:30.5]} 24. Kb1 {[%clk 0:00:29]} 24... Bd5 {[%clk 0:00:20.2]} 25.
c4 {[%clk 0:00:27.1]} 25... Bc6 {[%clk 0:00:19.9]} 26. Qe3 {[%clk 0:00:18.9]}
26... Qb6 {[%clk 0:00:11.8]} 27. c5 {[%clk 0:00:12.3]} 27... Qb4 {[%clk
0:00:10.6]} 28. Rd1 {[%clk 0:00:05.6]} 28... Ba4 {[%clk 0:00:04.8]} 29. Qe5
{[%clk 0:00:05.1]} 29... Bxd1 {[%clk 0:00:01.7]} 30. Qxf6 {[%clk 0:00:05.5]}
30... Qxd4 {[%clk 0:00:01.3]} 31. Rh7+ {[%clk 0:00:05.9]} 1-0

[Event "Early-Titled-Tuesday-Blitz-August-29-2023"]
[Site "Chess.com"]
[Date "2023.08.29"]
[Round "4"]
[White "vovachesss"]
[Black "likantrophuss"]
[Result "1-0"]
[WhiteElo "2799"]
[BlackElo "2541"]
[TimeControl "180+1"]
[EndTime "8:39:12 PDT"]
[Termination "vovachesss won on time"]

1. e4 {[%clk 0:03:00.9]} 1... e5 {[%clk 0:02:38.4]} 2. f4 {[%clk 0:03:00.5]}
2... exf4 {[%clk 0:02:36.4]} 3. Bc4 {[%clk 0:03:00.5]} 3... Qh4+ {[%clk
0:02:32.2]} 4. Kf1 {[%clk 0:03:00.6]} 4... d5 {[%clk 0:02:32.1]} 5. Bxd5 {[%clk
0:02:58.8]} 5... Nf6 {[%clk 0:02:29.3]} 6. Nf3 {[%clk 0:02:57.2]} 6... Qh5
{[%clk 0:02:27.4]} 7. Bb3 {[%clk 0:02:45.6]} 7... Be6 {[%clk 0:02:13.6]} 8. d3
{[%clk 0:02:41]} 8... Bxb3 {[%clk 0:02:02.8]} 9. axb3 {[%clk 0:02:41.4]} 9... g5
{[%clk 0:02:01.6]} 10. e5 {[%clk 0:02:18.9]} 10... Nd5 {[%clk 0:01:57.5]} 11.
Qe2 {[%clk 0:02:02.1]} 11... Nc6 {[%clk 0:01:50.2]} 12. Qe4 {[%clk 0:02:00.9]}
12... O-O-O {[%clk 0:01:47.8]} 13. Qf5+ {[%clk 0:01:30]} 13... Rd7 {[%clk
0:01:44.8]} 14. Qxg5 {[%clk 0:01:30.9]} 14... Qxg5 {[%clk 0:01:43.2]} 15. Nxg5
{[%clk 0:01:31.8]} 15... Nxe5 {[%clk 0:01:42.3]} 16. Rxa7 {[%clk 0:01:24.9]}
16... Kb8 {[%clk 0:01:38.2]} 17. Ra4 {[%clk 0:01:25.5]} 17... Bh6 {[%clk
0:01:30.8]} 18. Nf3 {[%clk 0:01:11.7]} 18... Nxf3 {[%clk 0:01:25.6]} 19. gxf3
{[%clk 0:01:12.6]} 19... Re8 {[%clk 0:01:19]} 20. Re4 {[%clk 0:01:06.3]} 20...
Rde7 {[%clk 0:01:16.5]} 21. Nc3 {[%clk 0:00:58.5]} 21... Rxe4 {[%clk 0:01:15.6]}
22. fxe4 {[%clk 0:00:36.9]} 22... Nb4 {[%clk 0:01:12.5]} 23. Rg1 {[%clk
0:00:37.5]} 23... Nxc2 {[%clk 0:01:10.9]} 24. Rg4 {[%clk 0:00:37.5]} 24... f5
{[%clk 0:00:54.8]} 25. Rh4 {[%clk 0:00:25.2]} 25... Bg5 {[%clk 0:00:36.2]} 26.
Rxh7 {[%clk 0:00:25.2]} 26... Nb4 {[%clk 0:00:25.4]} 27. h4 {[%clk 0:00:24]}
27... Bf6 {[%clk 0:00:17.5]} 28. Bxf4 {[%clk 0:00:22.1]} 28... Bxc3 {[%clk
0:00:16.6]} 29. Bxc7+ {[%clk 0:00:17.1]} 29... Ka7 {[%clk 0:00:14.7]} 30. bxc3
{[%clk 0:00:18]} 30... Nxd3 {[%clk 0:00:14]} 31. exf5 {[%clk 0:00:17.5]} 31...
Rf8 {[%clk 0:00:11.8]} 32. b4 {[%clk 0:00:13.2]} 32... Rxf5+ {[%clk 0:00:11.6]}
33. Ke2 {[%clk 0:00:13.8]} 33... Nb2 {[%clk 0:00:10.6]} 34. Rg7 {[%clk
0:00:12.8]} 34... Rh5 {[%clk 0:00:09.2]} 35. Rg5 {[%clk 0:00:12.5]} 1-0

[Event "Early-Titled-Tuesday-Blitz-August-29-2023"]
[Site "Chess.com"]
[Date "2023.08.29"]
[Round "4"]
[White "Andreikka"]
[Black "FormerProdigy"]
[Result "1-0"]
[WhiteElo "3032"]
[BlackElo "2880"]
[TimeControl "180+1"]
[EndTime "8:39:13 PDT"]
[Termination "Andreikka won by resignation"]

1. Nf3 {[%clk 0:02:59.5]} 1... Nf6 {[%clk 0:02:59.8]} 2. g3 {[%clk 0:02:59.2]}
2... d5 {[%clk 0:02:59.8]} 3. Bg2 {[%clk 0:02:59]} 3... g6 {[%clk 0:02:59.8]} 4.
O-O {[%clk 0:02:57.7]} 4... Bg7 {[%clk 0:03:00.1]} 5. d4 {[%clk 0:02:57.7]} 5...
O-O {[%clk 0:03:00.1]} 6. c4 {[%clk 0:02:57.3]} 6... c6 {[%clk 0:03:00.7]} 7.
Ne5 {[%clk 0:02:56]} 7... Ng4 {[%clk 0:02:56.4]} 8. Nxg4 {[%clk 0:02:52.1]} 8...
Bxg4 {[%clk 0:02:57.3]} 9. cxd5 {[%clk 0:02:52.3]} 9... cxd5 {[%clk 0:02:57.5]}
10. h3 {[%clk 0:02:51.5]} 10... Bd7 {[%clk 0:02:46.9]} 11. Nc3 {[%clk
0:02:49.1]} 11... Nc6 {[%clk 0:02:43]} 12. Nxd5 {[%clk 0:02:47.3]} 12... Bxh3
{[%clk 0:02:27.9]} 13. Bxh3 {[%clk 0:02:43.1]} 13... Qxd5 {[%clk 0:02:27.3]} 14.
e3 {[%clk 0:02:43.8]} 14... e5 {[%clk 0:02:19.2]} 15. Bg2 {[%clk 0:02:39.7]}
15... Qd6 {[%clk 0:02:19.3]} 16. Qb3 {[%clk 0:02:09.2]} 16... exd4 {[%clk
0:02:10]} 17. Qxb7 {[%clk 0:02:06.4]} 17... Rac8 {[%clk 0:01:50.6]} 18. Rd1
{[%clk 0:02:00.2]} 18... Rfd8 {[%clk 0:01:39.8]} 19. Bd2 {[%clk 0:01:33.8]}
19... Qc7 {[%clk 0:00:39.6]} 20. Qxc7 {[%clk 0:01:24.2]} 20... Rxc7 {[%clk
0:00:40.5]} 21. exd4 {[%clk 0:01:18.3]} 21... Nxd4 {[%clk 0:00:41.4]} 22. Ba5
{[%clk 0:01:17.9]} 22... Rdc8 {[%clk 0:00:19.6]} 23. Bxc7 {[%clk 0:01:15.3]}
23... Rxc7 {[%clk 0:00:20.5]} 24. Kf1 {[%clk 0:01:09.8]} 24... h5 {[%clk
0:00:19.4]} 25. Rac1 {[%clk 0:01:09.4]} 25... Re7 {[%clk 0:00:19.8]} 26. Rd2
{[%clk 0:01:01.4]} 26... Kh7 {[%clk 0:00:16.2]} 27. Rc4 {[%clk 0:00:59.6]} 27...
Nf5 {[%clk 0:00:14.3]} 28. b4 {[%clk 0:00:51.8]} 28... Be5 {[%clk 0:00:09.8]}
29. Rd3 {[%clk 0:00:44.4]} 29... Bf6 {[%clk 0:00:07.1]} 30. a4 {[%clk
0:00:40.3]} 30... h4 {[%clk 0:00:05.8]} 31. gxh4 {[%clk 0:00:40.3]} 31... Bxh4
{[%clk 0:00:06.7]} 32. Bh3 {[%clk 0:00:37.9]} 32... Bf6 {[%clk 0:00:05.7]} 33.
Bxf5 {[%clk 0:00:37.1]} 33... gxf5 {[%clk 0:00:06.6]} 34. b5 {[%clk 0:00:35.6]}
34... Kg6 {[%clk 0:00:05.2]} 35. a5 {[%clk 0:00:36.1]} 35... Be5 {[%clk
0:00:05.2]} 36. Re3 {[%clk 0:00:34.2]} 36... Kf6 {[%clk 0:00:05]} 37. b6 {[%clk
0:00:34.3]} 37... axb6 {[%clk 0:00:04.8]} 38. axb6 {[%clk 0:00:35.2]} 38... Rb7
{[%clk 0:00:03.4]} 39. Rc6+ {[%clk 0:00:34.9]} 1-0

[Event "Early-Titled-Tuesday-Blitz-August-29-2023"]
[Site "Chess.com"]
[Date "2023.08.29"]
[Round "4"]
[White "igorkovalenko"]
[Black "Frolyanov_D"]
[Result "1-0"]
[WhiteElo "2949"]
[BlackElo "2604"]
[TimeControl "180+1"]
[EndTime "8:39:13 PDT"]
[Termination "igorkovalenko won by resignation"]

1. c4 {[%clk 0:03:00]} 1... e6 {[%clk 0:02:59.2]} 2. Nf3 {[%clk 0:03:00.9]} 2...
d5 {[%clk 0:02:58.9]} 3. b3 {[%clk 0:03:01.2]} 3... Nf6 {[%clk 0:02:58.7]} 4.
Bb2 {[%clk 0:03:01.3]} 4... Be7 {[%clk 0:02:58.9]} 5. g3 {[%clk 0:03:00.6]} 5...
O-O {[%clk 0:02:58.9]} 6. Bg2 {[%clk 0:03:01.3]} 6... b6 {[%clk 0:02:58.9]} 7.
O-O {[%clk 0:03:01.4]} 7... Bb7 {[%clk 0:02:59.2]} 8. e3 {[%clk 0:03:00.8]} 8...
Nbd7 {[%clk 0:02:57.3]} 9. Qe2 {[%clk 0:03:00.9]} 9... a5 {[%clk 0:02:57]} 10.
Nc3 {[%clk 0:03:00.7]} 10... Nc5 {[%clk 0:02:55.5]} 11. cxd5 {[%clk 0:02:58.4]}
11... exd5 {[%clk 0:02:54.2]} 12. d3 {[%clk 0:02:55]} 12... a4 {[%clk
0:02:51.7]} 13. b4 {[%clk 0:02:47.4]} 13... a3 {[%clk 0:02:51.5]} 14. bxc5
{[%clk 0:02:47.1]} 14... axb2 {[%clk 0:02:51]} 15. Qxb2 {[%clk 0:02:48]} 15...
Bxc5 {[%clk 0:02:49.4]} 16. a4 {[%clk 0:02:48]} 16... d4 {[%clk 0:02:40.5]} 17.
exd4 {[%clk 0:02:21.3]} 17... Bxd4 {[%clk 0:02:40.3]} 18. Ra3 {[%clk 0:02:18.4]}
18... Bxf3 {[%clk 0:02:20.3]} 19. Bxf3 {[%clk 0:02:18.2]} 19... Ra5 {[%clk
0:02:20.3]} 20. Qc2 {[%clk 0:02:17.5]} 20... Rc5 {[%clk 0:02:17.9]} 21. Qd2
{[%clk 0:02:15.8]} 21... Rf5 {[%clk 0:02:13]} 22. Bg2 {[%clk 0:02:15.5]} 22...
Ng4 {[%clk 0:01:58.4]} 23. Ne4 {[%clk 0:02:11.3]} 23... Ne5 {[%clk 0:01:51]} 24.
Qd1 {[%clk 0:02:07.7]} 24... h5 {[%clk 0:01:45.7]} 25. Kh1 {[%clk 0:02:02.2]}
25... h4 {[%clk 0:01:41.8]} 26. f4 {[%clk 0:01:58.5]} 26... Ng6 {[%clk 0:01:11]}
27. Ng5 {[%clk 0:01:51]} 27... Rxg5 {[%clk 0:01:00.3]} 28. fxg5 {[%clk
0:01:50.7]} 28... hxg3 {[%clk 0:01:01]} 29. Qh5 {[%clk 0:01:47.9]} 29... Qd6
{[%clk 0:00:56.6]} 30. Ra2 {[%clk 0:01:45.5]} 30... Nf4 {[%clk 0:00:55.9]} 31.
Qg4 {[%clk 0:01:41.2]} 31... Nxd3 {[%clk 0:00:53.4]} 32. hxg3 {[%clk 0:01:39.8]}
32... Qc5 {[%clk 0:00:48.8]} 33. Kh2 {[%clk 0:01:36.2]} 33... Qc4 {[%clk
0:00:41.6]} 34. Kh3 {[%clk 0:01:22.2]} 34... Qxa2 {[%clk 0:00:40.1]} 35. Qxd4
{[%clk 0:01:22.4]} 35... Nc5 {[%clk 0:00:37.2]} 36. Bd5 {[%clk 0:01:19]} 36...
Qe2 {[%clk 0:00:34.2]} 37. Rf3 {[%clk 0:00:46.3]} 37... Ne6 {[%clk 0:00:31.1]}
38. Qg4 {[%clk 0:00:46.4]} 38... Qe5 {[%clk 0:00:27.9]} 39. Rf5 {[%clk
0:00:43.6]} 39... Qe3 {[%clk 0:00:15]} 40. g6 {[%clk 0:00:42.1]} 40... Qh6+
{[%clk 0:00:08.4]} 41. Rh5 {[%clk 0:00:41.5]} 41... Qe3 {[%clk 0:00:04.7]} 42.
gxf7+ {[%clk 0:00:39.4]} 42... Rxf7 {[%clk 0:00:02.9]} 43. Qxe6 {[%clk
0:00:38.2]} 1-0

[Event "Early-Titled-Tuesday-Blitz-August-29-2023"]
[Site "Chess.com"]
[Date "2023.08.29"]
[Round "4"]
[White "brm72"]
[Black "starworld123"]
[Result "1-0"]
[WhiteElo "2554"]
[BlackElo "2778"]
[TimeControl "180+1"]
[EndTime "8:39:16 PDT"]
[Termination "brm72 won on time"]

1. e4 {[%clk 0:03:00.9]} 1... d6 {[%clk 0:02:56.4]} 2. d4 {[%clk 0:03:00.2]}
2... Nf6 {[%clk 0:02:56.7]} 3. Nc3 {[%clk 0:03:00.8]} 3... g6 {[%clk 0:02:57.2]}
4. Be3 {[%clk 0:03:01.4]} 4... a6 {[%clk 0:02:52.5]} 5. Qd2 {[%clk 0:02:54.7]}
5... b5 {[%clk 0:02:51.2]} 6. Bd3 {[%clk 0:02:52.2]} 6... Bb7 {[%clk 0:02:51.2]}
7. f3 {[%clk 0:02:50.6]} 7... Nbd7 {[%clk 0:02:48.1]} 8. h4 {[%clk 0:02:30.6]}
8... c5 {[%clk 0:02:41.9]} 9. Nh3 {[%clk 0:02:26.9]} 9... cxd4 {[%clk
0:02:25.3]} 10. Bxd4 {[%clk 0:02:26.5]} 10... Bg7 {[%clk 0:02:26]} 11. g4 {[%clk
0:02:15.5]} 11... Ne5 {[%clk 0:02:19.7]} 12. Be2 {[%clk 0:02:07.4]} 12... Nc6
{[%clk 0:02:01.1]} 13. Be3 {[%clk 0:02:06.4]} 13... h5 {[%clk 0:02:01]} 14. g5
{[%clk 0:02:01.1]} 14... Nd7 {[%clk 0:02:01.2]} 15. O-O-O {[%clk 0:02:00.4]}
15... Rc8 {[%clk 0:01:59.4]} 16. Kb1 {[%clk 0:02:00.2]} 16... Nde5 {[%clk
0:01:37.1]} 17. Nd5 {[%clk 0:01:58.6]} 17... O-O {[%clk 0:01:22.9]} 18. Nf2
{[%clk 0:01:26.8]} 18... Nc4 {[%clk 0:00:50.2]} 19. Bxc4 {[%clk 0:01:25.9]}
19... bxc4 {[%clk 0:00:51.1]} 20. f4 {[%clk 0:01:07.5]} 20... c3 {[%clk
0:00:42.7]} 21. Nxc3 {[%clk 0:01:07.1]} 21... Na5 {[%clk 0:00:36.8]} 22. Bd4
{[%clk 0:01:03]} 22... Nc4 {[%clk 0:00:35.5]} 23. Qd3 {[%clk 0:01:03.3]} 23...
e5 {[%clk 0:00:35.9]} 24. fxe5 {[%clk 0:00:54.8]} 24... Nxe5 {[%clk 0:00:21.1]}
25. Qe2 {[%clk 0:00:50.1]} 25... Qa5 {[%clk 0:00:20]} 26. Nd5 {[%clk 0:00:47.8]}
26... Bxd5 {[%clk 0:00:20]} 27. exd5 {[%clk 0:00:48.5]} 27... Qxd5 {[%clk
0:00:18.8]} 28. Ne4 {[%clk 0:00:46.2]} 28... Qe6 {[%clk 0:00:15.1]} 29. Rhf1
{[%clk 0:00:43.7]} 29... Rb8 {[%clk 0:00:13.1]} 30. Nf6+ {[%clk 0:00:40.8]}
30... Kh8 {[%clk 0:00:11.7]} 31. Rfe1 {[%clk 0:00:26.8]} 31... Bxf6 {[%clk
0:00:07.7]} 32. gxf6 {[%clk 0:00:27.1]} 32... Qxf6 {[%clk 0:00:08.4]} 33. Qxa6
{[%clk 0:00:27.7]} 33... Kg7 {[%clk 0:00:02.1]} 34. Bc3 {[%clk 0:00:22.3]} 34...
Rbd8 {[%clk 0:00:01.6]} 35. a4 {[%clk 0:00:21.6]} 1-0

[Event "Early-Titled-Tuesday-Blitz-August-29-2023"]
[Site "Chess.com"]
[Date "2023.08.29"]
[Round "4"]
[White "tptagain"]
[Black "Romkachess"]
[Result "1-0"]
[WhiteElo "2879"]
[BlackElo "2551"]
[TimeControl "180+1"]
[EndTime "8:39:17 PDT"]
[Termination "tptagain won by resignation"]

1. Nf3 {[%clk 0:03:00.9]} 1... Nf6 {[%clk 0:02:44.7]} 2. b3 {[%clk 0:03:01]}
2... b6 {[%clk 0:02:44.5]} 3. Bb2 {[%clk 0:03:00.9]} 3... Bb7 {[%clk 0:02:43]}
4. g3 {[%clk 0:03:01.4]} 4... e6 {[%clk 0:02:38.6]} 5. Bg2 {[%clk 0:03:00.8]}
5... Be7 {[%clk 0:02:39.1]} 6. O-O {[%clk 0:03:00.5]} 6... O-O {[%clk
0:02:37.2]} 7. c4 {[%clk 0:03:00.9]} 7... d6 {[%clk 0:02:33.4]} 8. d3 {[%clk
0:02:55.5]} 8... e5 {[%clk 0:02:31.8]} 9. e4 {[%clk 0:02:54]} 9... a5 {[%clk
0:02:30.3]} 10. Nc3 {[%clk 0:02:53.8]} 10... Nbd7 {[%clk 0:02:25.6]} 11. Qc2
{[%clk 0:02:39.8]} 11... Re8 {[%clk 0:02:08.4]} 12. d4 {[%clk 0:02:37.3]} 12...
Bf8 {[%clk 0:02:06.4]} 13. Rad1 {[%clk 0:02:34.6]} 13... exd4 {[%clk 0:01:57.5]}
14. Nxd4 {[%clk 0:02:35.5]} 14... Nc5 {[%clk 0:01:57.1]} 15. Rfe1 {[%clk
0:02:35.4]} 15... Nfd7 {[%clk 0:01:19.3]} 16. Nd5 {[%clk 0:02:16.1]} 16... Ne6
{[%clk 0:00:56.6]} 17. Nxe6 {[%clk 0:02:09.8]} 17... fxe6 {[%clk 0:00:57.5]} 18.
Nf4 {[%clk 0:02:04.2]} 18... Nc5 {[%clk 0:00:48.6]} 19. e5 {[%clk 0:02:02.6]}
19... Bxg2 {[%clk 0:00:47.7]} 20. Kxg2 {[%clk 0:02:03.1]} 20... Qg5 {[%clk
0:00:43.5]} 21. h4 {[%clk 0:02:02.2]} 21... Qe7 {[%clk 0:00:27.9]} 22. Bd4
{[%clk 0:01:44.4]} 22... Qf7 {[%clk 0:00:22.5]} 23. Qe2 {[%clk 0:01:26.5]} 23...
Rad8 {[%clk 0:00:18.7]} 24. Qg4 {[%clk 0:01:23.8]} 24... Qf5 {[%clk 0:00:15.6]}
25. Qxf5 {[%clk 0:01:16.5]} 25... exf5 {[%clk 0:00:16.5]} 26. Bxc5 {[%clk
0:00:50.7]} 26... bxc5 {[%clk 0:00:14.1]} 27. Nd5 {[%clk 0:00:37.8]} 27... dxe5
{[%clk 0:00:08.9]} 28. Nxc7 {[%clk 0:00:36.9]} 28... Rxd1 {[%clk 0:00:09.5]} 29.
Rxd1 {[%clk 0:00:37]} 29... Rc8 {[%clk 0:00:10.2]} 30. Rd7 {[%clk 0:00:36.3]}
30... e4 {[%clk 0:00:07.1]} 31. h5 {[%clk 0:00:22.9]} 31... Bd6 {[%clk
0:00:07.2]} 32. Nd5 {[%clk 0:00:20.8]} 32... Bf8 {[%clk 0:00:06.5]} 33. h6
{[%clk 0:00:20.1]} 33... Re8 {[%clk 0:00:06.1]} 34. hxg7 {[%clk 0:00:16]} 34...
Bxg7 {[%clk 0:00:06.3]} 35. Ne7+ {[%clk 0:00:16.1]} 35... Kf7 {[%clk 0:00:03.9]}
36. Nxf5+ {[%clk 0:00:16]} 36... Ke6 {[%clk 0:00:04.8]} 37. Nxg7+ {[%clk
0:00:15.1]} 1-0

[Event "Early-Titled-Tuesday-Blitz-August-29-2023"]
[Site "Chess.com"]
[Date "2023.08.29"]
[Round "4"]
[White "ChEsper99"]
[Black "borocotoajua"]
[Result "0-1"]
[WhiteElo "2123"]
[BlackElo "2363"]
[TimeControl "180+1"]
[EndTime "8:39:18 PDT"]
[Termination "borocotoajua won on time"]

1. e4 {[%clk 0:03:00.9]} 1... c6 {[%clk 0:02:58.3]} 2. Nc3 {[%clk 0:02:58.2]}
2... d5 {[%clk 0:02:58.3]} 3. Nf3 {[%clk 0:02:58.8]} 3... Bg4 {[%clk 0:02:57.8]}
4. h3 {[%clk 0:02:58.4]} 4... Bxf3 {[%clk 0:02:58]} 5. Qxf3 {[%clk 0:02:59.3]}
5... e6 {[%clk 0:02:58.7]} 6. d4 {[%clk 0:02:59.1]} 6... dxe4 {[%clk 0:02:57.8]}
7. Qe3 {[%clk 0:02:59.6]} 7... Nf6 {[%clk 0:02:51.1]} 8. Nxe4 {[%clk 0:02:59.4]}
8... Nbd7 {[%clk 0:02:47.3]} 9. Bd2 {[%clk 0:02:54.6]} 9... Be7 {[%clk
0:02:40.6]} 10. O-O-O {[%clk 0:02:53.6]} 10... O-O {[%clk 0:02:40.2]} 11. g4
{[%clk 0:02:49]} 11... a5 {[%clk 0:02:40.2]} 12. g5 {[%clk 0:02:37.7]} 12... Nd5
{[%clk 0:02:28.5]} 13. Qg3 {[%clk 0:02:34.3]} 13... a4 {[%clk 0:02:24.2]} 14. a3
{[%clk 0:02:29.9]} 14... b5 {[%clk 0:02:23.6]} 15. c3 {[%clk 0:02:08.9]} 15...
Qb6 {[%clk 0:02:18.3]} 16. Bd3 {[%clk 0:02:01]} 16... b4 {[%clk 0:02:05.4]} 17.
cxb4 {[%clk 0:01:54.4]} 17... Qxd4 {[%clk 0:02:02.1]} 18. Nc3 {[%clk 0:01:33.4]}
18... Ne5 {[%clk 0:01:41.9]} 19. Bc2 {[%clk 0:00:54.2]} 19... Nc4 {[%clk
0:01:23.4]} 20. Be3 {[%clk 0:00:32.2]} 20... Nxc3 {[%clk 0:00:57.2]} 21. Bxd4
{[%clk 0:00:25.9]} 21... Ne2+ {[%clk 0:00:57.3]} 22. Kb1 {[%clk 0:00:25]} 22...
Nxg3 {[%clk 0:00:58.2]} 23. fxg3 {[%clk 0:00:24.5]} 23... Bxg5 {[%clk
0:00:54.6]} 24. Be4 {[%clk 0:00:24.5]} 24... Nd2+ {[%clk 0:00:54]} 25. Rxd2
{[%clk 0:00:21]} 25... Bxd2 {[%clk 0:00:54.9]} 26. Bxc6 {[%clk 0:00:18.2]} 26...
Rac8 {[%clk 0:00:50.9]} 27. b5 {[%clk 0:00:18]} 27... Rfd8 {[%clk 0:00:48]} 28.
Bb6 {[%clk 0:00:14.6]} 28... Rd6 {[%clk 0:00:41.4]} 29. Bc5 {[%clk 0:00:12.2]}
29... Rdd8 {[%clk 0:00:36.1]} 30. Rd1 {[%clk 0:00:08.5]} 30... Ba5 {[%clk
0:00:33.8]} 31. Rxd8+ {[%clk 0:00:03.2]} 31... Bxd8 {[%clk 0:00:34.7]} 32. Kc2
{[%clk 0:00:03.7]} 32... f6 {[%clk 0:00:31.4]} 33. Kc3 {[%clk 0:00:03.8]} 33...
Kf7 {[%clk 0:00:30.5]} 34. Kb4 {[%clk 0:00:04.2]} 34... Be7 {[%clk 0:00:29.9]}
35. Bxe7 {[%clk 0:00:02]} 35... Kxe7 {[%clk 0:00:30.8]} 36. Kxa4 {[%clk
0:00:02.5]} 36... Kd6 {[%clk 0:00:31.2]} 37. Kb4 {[%clk 0:00:03.1]} 37... e5
{[%clk 0:00:31.6]} 38. a4 {[%clk 0:00:03.7]} 38... f5 {[%clk 0:00:32.1]} 39. a5
{[%clk 0:00:04]} 39... e4 {[%clk 0:00:32.6]} 40. a6 {[%clk 0:00:04]} 40... e3
{[%clk 0:00:32.3]} 41. Bf3 {[%clk 0:00:04]} 41... Kc7 {[%clk 0:00:31.3]} 42. a7
{[%clk 0:00:04]} 42... Kb6 {[%clk 0:00:28.9]} 43. h4 {[%clk 0:00:01.6]} 43...
Kxa7 {[%clk 0:00:28]} 0-1